[Event "Czech Championship 2024"]
[Site "Ostrava"]
[Date "2024.05.03"]
[Round "7.4"]
[White "Stocek, Jiri"]
[Black "Simacek, Pavel"]
[Result "1/2-1/2"]
[ECO "D23"]
[WhiteElo "2531"]
[BlackElo "2446"]
[Annotator "TA"]
[PlyCount "83"]
[EventDate "2024.04.25"]
[EventType "tourn"]
[EventCountry "CZE"]
[SourceTitle "playchess.com"]
[Source "ChessBase"]
[SourceQuality "1"]
[TimeControl "40/5400+30:1800+30"]

{[%evp 11,83,0,24,22,15,31,31,24,39,20,12,0,0,0,0,7,11,3,0,6,8,16,10,-2,0,0,0,0,0,0,1,4,10,0,25,22,36,35,39,31,63,72,66,56,67,61,111,132,132,0,0,0,0,0,0,0,0,0,0,0,0,0,0,0,0,0,0,0,0,0,0,0,0,0]} 1. d4 {[%emt 0:01:02]} d5 {[%emt 0:00:16]} 2. Nf3 {[%emt 0:01:17]} Nf6 {[%emt 0:00:36]} 3. c4 {[%emt 0:02:49]} e6 {[%emt 0:00:26]} 4. Nc3 {[%emt 0:01:57]} dxc4 {[%emt 0:01:10]} 5. Qa4+ {[%emt 0:00:23]} Nbd7 {[%emt 0:01:27]} 6. e4 {[%emt 0:01:51][%cal Be2e4,Be4e5][%mdl 32]} Be7 {[%emt 0:01:23]} 7. Bxc4 {[%emt 0:02:22]} O-O {[%emt 0:03:09]} 8. Qc2 {[%emt 0:01:36]} c5 {[%emt 0:14:45]} 9. e5 {[%emt 0:16:51] White is slightly better.} Nd5 {[%emt 0:00:27]} 10. Bxd5 {[%emt 0:04:42]} exd5 {[%emt 0:00:13]} 11. O-O {[%emt 0:00:36]} cxd4 {[%emt 0:00:55]} 12. Nb5 {[%emt 0:00:17]} d3 {[%emt 0:10:45]} 13. Qxd3 {[%emt 0:00:22]} Nc5 {[%emt 0:00:05]} 14. Qe2 {[%emt 0:00:35]} a6 {[%emt 0:07:23]} 15. Nbd4 {[%emt 0:00:49]} Bg4 {[%emt 0:00:06]} 16. h3 {[%emt 0:03:10]} Bh5 {[%emt 0:01:45]} 17. Be3 {[%emt 0:04:56]} Qd7 {[%emt 0:07:15]} 18. Rac1 {[%emt 0:03:14]} Rac8 {[%emt 0:00:11]} 19. Rfd1 {[%emt 0:00:40]} Rfe8 {[%emt 0:02:43]} 20. Rc3 {[%emt 0:10:52]} Ne4 {[%emt 0:04:14]} 21. Rxc8 {[%emt 0:02:38]} Rxc8 {[%emt 0:00:05]} 22. Qf1 {[%emt 0:09:24]} Bc5 {[%emt 0:23:13]} 23. Qd3 {[%emt 0:06:26]} Bg6 {[%emt 0:13:21][%cal Oe4f2] Hoping for ...Nxf2!} 24. Qb3 {[%emt 0:04:24]} h6 {[%emt 0:01:20] [#]} 25. e6 $1 {[%emt 0:07:32]} fxe6 {[%emt 0:01:07] ...Bd6 would now be deadly.} (25... Qd6 26. Nh4) 26. Ne5 $1 {[%emt 0:00:08][%csl LRd7,LRg6] Excellent horsemanship.} Qe8 {[%emt 0:00:03]} 27. Qxb7 {[%emt 0:00:21]} Rb8 {[%emt 0:02:42]} 28. Qxa6 {[%emt 0:00:20] White has more active pieces.} Bd6 {[%emt 0:00:04]} (28... Rxb2 $14 29. Nd3 Bxd4 30. Bxd4 Rc2) 29. Nxg6 $16 {[%emt 0:04:07]} Qxg6 {[%emt 0:00:02]} 30. Nb5 {[%emt 0:00:22]} (30. b3 $16) 30... Bc5 $1 $11 {[%emt 0:01:22] The position is equal.} 31. Bxc5 {[%emt 0:01:56]} Nxc5 {[%emt 0:00:01]} 32. Qc6 {[%emt 0:00:12]} Nd3 {[%emt 0:00:18][%cal Od3f4] [#] Threatens to win with ...Nf4!} 33. Qc2 {[%emt 0:05:27]} Rxb5 {[%emt 0:00:18]} 34. Rxd3 {[%emt 0:00:20] Strongly threatening Qc8+.} (34. Qxd3 Qxd3 35. Rxd3 Rxb2) 34... Rxb2 $1 {[%emt 0:00:14]} 35. Qxb2 {[%emt 0:01:54]} Qxd3 {[%emt 0:00:07][%mdl 4096] Endgame. KQ-KQ} 36. Qe5 {[%emt 0:00:23]} Qb1+ {[%emt 0:01:01]} 37. Kh2 {[%emt 0:00:23]} Qxa2 {[%emt 0:00:09]} 38. Qxe6+ {[%emt 0:00:03]} Kh8 {[%emt 0:00:36]} 39. Qc8+ {[%emt 0:01:00]} Kh7 {[%emt 0:00:04]} 40. Qf5+ {[%emt 0:00:24]} Kg8 {[%emt 0:00:24]} 41. Qe6+ {[%emt 0:04:41]} Kh8 {[%emt 0:02:43]} 42. Qc8+ {[%emt 0:00:19] Weighted Error Value: White=0.08 (flawless) /Black=0.06 (flawless) .  Mistake:       	White=1     	Black=1      Inaccurate:     	---       	Black=1      OK:         	White=19    	Black=16     Best:        	White=4     	Black=2      Strong:       	---       	Black=2} 1/2-1/2

[Event "Czech Championship 2024"]
[Site "Ostrava"]
[Date "2024.05.03"]
[Round "7.5"]
[White "Kraus, Tomas"]
[Black "Navara, David"]
[Result "0-1"]
[ECO "C47"]
[WhiteElo "2488"]
[BlackElo "2678"]
[Annotator "TA"]
[PlyCount "107"]
[EventDate "2024.04.25"]
[EventType "tourn"]
[EventCountry "CZE"]
[SourceTitle "playchess.com"]
[Source "ChessBase"]
[SourceQuality "1"]
[TimeControl "40/5400+30:1800+30"]

{[%evp 22,107,0,0,0,0,-2,-11,17,10,5,0,0,0,0,0,0,0,0,0,0,-1,0,0,0,-80,-49,-68,-64,-71,-84,-74,-74,-82,-72,-73,-75,-77,-79,-87,-70,-91,-68,-68,-60,-62,-41,-42,-42,-47,-50,-45,-56,-47,-47,-62,-62,-62,-62,-62,-62,-62,-62,-62,-62,-62,-62,-62,-62,-70,-70,-62,-62,-64,-61,-128,-122,-328,-316,-248,-189,-568,-566,-654,-653,-650,-640,-619]} 1. e4 {[%emt 0:00:03]} e5 {[%emt 0:00:03]} 2. Nf3 {[%emt 0:01:07]} Nc6 {[%emt 0:00:09]} 3. Nc3 {[%emt 0:04:05]} Nf6 {[%emt 0:00:15]} 4. d4 {[%emt 0:00:05]} exd4 {[%emt 0:00:09]} 5. Nxd4 {[%emt 0:00:05]} Bb4 {[%emt 0:00:05]} 6. Nxc6 {[%emt 0:00:08]} bxc6 {[%emt 0:00:04]} 7. Bd3 {[%emt 0:00:17]} d5 {[%emt 0:00:08]} 8. Bd2 {[%emt 0:02:05]} O-O {[%emt 0:00:31]} 9. O-O {[%emt 0:00:04]} Rb8 {[%emt 0:05:35] C47: Scotch Four Knights and Four Knights with 4 g3.} 10. Re1 {[%emt 0:02:52]} Re8 {[%emt 0:00:24] 10...Bg4 is the fancy move.} 11. h3 {[%emt 0:04:24]} dxe4 {[%emt 0:12:13]} 12. Bxe4 {[%emt 0:32:36]} Bxh3 $146 {[%emt 0:04:16]} ({Predecessor:} 12... Nxe4 13. Nxe4 Bxd2 14. Qxd2 Bf5 15. Qf4 Bxe4 16. Rxe4 Rxe4 17. Qxe4 Rxb2 18. Qxc6 {½-½ Binas,J (2328)-Adams,J (2329) CZE-ch16 Morava01 email 2016}) 13. Bxc6 {[%emt 0:03:11]} Bd7 {[%emt 0:09:54]} 14. Bf3 {[%emt 0:02:07]} Bf5 {[%emt 0:04:47]} 15. Rxe8+ {[%emt 0:09:02]} Qxe8 {[%emt 0:02:46]} 16. Be3 {[%emt 0:03:25]} Bxc3 {[%emt 0:08:23]} 17. bxc3 {[%emt 0:00:01]} Rd8 {[%emt 0:00:50]} 18. Qb1 {[%emt 0:02:36]} Be4 {[%emt 0:02:41]} 19. Bxe4 $1 {[%emt 0:01:39]} Nxe4 {[%emt 0:00:34]} 20. Qb7 {[%emt 0:00:11]} Nxc3 {[%emt 0:02:20]} 21. Re1 {[%emt 0:03:43]} Qe5 {[%emt 0:17:44]} (21... Nxa2 $2 22. Qb3 $18) (21... Nd5 {simplifies} 22. Qxa7 Nxe3 23. Qxe3 Qxe3 24. Rxe3 g6) 22. Qxa7 {[%emt 0:03:09]} h6 {[%emt 0:00:56]} 23. Qa6 {[%emt 0:01:54]} (23. a4 $11) 23... Qd5 {[%emt 0:01:10]} 24. Bf4 {[%emt 0:02:03]} Ra8 {[%emt 0:02:13]} ({But not} 24... Qxa2 25. Qxa2 Nxa2 26. Bxc7 $11) 25. Qd3 {[%emt 0:01:42]} Qxd3 {[%emt 0:00:18]} 26. cxd3 {[%emt 0:00:01]} Nd5 {[%emt 0:00:18]} 27. Bg3 {[%emt 0:02:51]} Rxa2 {[%emt 0:00:24]} 28. Rc1 {[%emt 0:00:36]} Rd2 {[%emt 0:00:18]} 29. Bxc7 {[%emt 0:00:12]} Rxd3 {[%emt 0:00:07]} 30. Rc2 {[%emt 0:04:29]} Kh7 {[%emt 0:02:33]} 31. Ba5 {[%emt 0:02:14]} Ra3 {[%emt 0:01:05]} 32. Bd2 {[%emt 0:00:01]} f6 {[%emt 0:08:42]} 33. g4 {[%emt 0:01:18]} g5 {[%emt 0:05:15]} 34. Kg2 {[%emt 0:00:23]} Kg6 {[%emt 0:00:15]} 35. f3 {[%emt 0:01:39]} h5 {[%emt 0:04:13]} 36. gxh5+ {[%emt 0:00:10]} Kxh5 {[%emt 0:00:06]} 37. Kf2 {[%emt 0:00:47]} Kg6 {[%emt 0:00:18]} 38. Rc5 {[%emt 0:01:26]} Ne7 {[%emt 0:00:07]} 39. Rc3 {[%emt 0:08:55]} Ra2 {[%emt 0:00:20]} 40. Rd3 {[%emt 0:00:22]} Nf5 {[%emt 0:04:05]} 41. Ke2 {[%emt 0:03:53]} Nh4 {[%emt 0:02:19]} 42. Kf2 {[%emt 0:01:19]} f5 {[%emt 0:02:49]} 43. Ke2 {[%emt 0:08:59]} f4 {[%emt 0:00:49]} 44. Rd6+ {[%emt 0:01:06]} Kh5 {[%emt 0:06:16]} 45. Rd5 {[%emt 0:02:26]} Rb2 {[%emt 0:03:31]} 46. Rd8 {[%emt 0:01:57]} Ng6 {[%emt 0:00:38]} 47. Kd3 {[%emt 0:03:45]} Rb3+ {[%emt 0:01:48]} 48. Ke4 {[%emt 0:01:42]} (48. Ke2 $1 $15) 48... Nh4 {[%emt 0:05:53]} 49. Rf8 $2 {[%emt 0:09:24] [#]} (49. Rh8+ $17 Kg6 50. Rg8+ Kf6 51. Rc8) 49... Ra3 $1 $19 {[%emt 0:01:18]} ({Less strong is} 49... Nxf3 50. Bxf4 gxf4 51. Kxf4 $15) 50. Rh8+ {[%emt 0:00:51]} Kg6 {[%emt 0:00:14]} 51. Rb8 $2 {[%emt 0:00:52]} (51. Rg8+ {was the crucial defense.} Kf6 52. Rb8) 51... Rxf3 $19 {[%emt 0:01:32]} ({Weaker is} 51... Nxf3 52. Bxf4 gxf4 53. Kxf4 $15) 52. Rb6+ {[%emt 0:01:43]} Kh5 {[%emt 0:00:09]} 53. Rf6 {[%emt 0:00:02]} Kg4 {[%emt 0:00:28]} 54. Kd4 {[%emt 0:01:33]} 0-1

[Event "Czech Championship 2024"]
[Site "Ostrava"]
[Date "2024.05.04"]
[Round "8.1"]
[White "Hrbek, Stepan"]
[Black "Navara, David"]
[Result "0-1"]
[ECO "E24"]
[WhiteElo "2407"]
[BlackElo "2678"]
[Annotator "TA"]
[PlyCount "96"]
[EventDate "2024.04.25"]
[EventType "tourn"]
[EventCountry "CZE"]
[SourceTitle "playchess.com"]
[Source "ChessBase"]
[SourceQuality "1"]
[TimeControl "40/5400+30:1800+30"]

{[%evp 13,96,-26,-22,-27,0,-5,0,-10,11,7,21,8,56,-5,-9,-20,-22,-16,-25,-41,-34,-39,-20,-6,0,0,-8,0,-8,-8,-8,-41,-22,-27,-29,-44,-37,-42,0,-29,0,-12,-3,-22,-23,-25,0,0,0,-18,0,-8,0,-65,-8,-8,-8,-8,-8,-40,-47,-1268,-1085,-1320,-1328,-1325,-1328,-4137,-4137,-4137,-4137,-4137,-4137,-29984,-29985,-29985,-29986,-29986,-29987,-29987,-29988,-29988,-29989,-29989,-29990]} 1. d4 {[%emt 0:00:03]} Nf6 {[%emt 0:00:35]} 2. c4 {[%emt 0:00:20]} e6 {[%emt 0:00:05]} 3. Nc3 {[%emt 0:00:19]} Bb4 {[%emt 0:00:08]} 4. a3 {[%emt 0:00:18]} Bxc3+ {[%emt 0:00:05]} 5. bxc3 {[%emt 0:00:06]} c5 {[%emt 0:01:24]} 6. f3 {[%emt 0:00:31]} Nc6 {[%emt 0:01:59]} 7. e4 {[%emt 0:00:12]} d6 {[%emt 0:00:50]} 8. Ne2 {[%emt 0:00:26]} b6 {[%emt 0:01:22]} 9. Bg5 {[%emt 0:00:32]} h6 {[%emt 0:05:06]} 10. Bh4 {[%emt 0:00:24] The position is equal.} Bb7 {[%emt 0:00:36]} 11. Nc1 {[%emt 0:06:44]} g5 {[%emt 0:22:25]} 12. Bf2 {[%emt 0:03:31]} Qc7 {[%emt 0:04:28]} (12... Nh5 $11) 13. h4 {[%emt 0:12:43]} (13. Nb3 $14) 13... O-O-O {[%emt 0:05:38][%cal Og5g4]} 14. hxg5 {[%emt 0:13:18]} hxg5 {[%emt 0:00:20]} 15. Rxh8 {[%emt 0:00:08]} Rxh8 {[%emt 0:00:07]} 16. Qd2 {[%emt 0:00:13]} g4 {[%emt 0:08:39]} 17. Nb3 {[%emt 0:17:00]} Ba6 {[%emt 0:05:02] Strongly threatening ...Rh1.} 18. Qg5 {[%emt 0:10:51][%csl LRf6,LRg4]} Qe7 {[%emt 0:01:00]} 19. Bh4 {[%emt 0:01:32]} Ng8 {[%emt 0:15:00]} 20. Qxe7 {[%emt 0:02:05]} (20. Qxg4 $2 Qxh4+ 21. Qxh4 Rxh4 $19) (20. fxg4 $2 f6 21. Qg6 Qf8 $19) 20... Ngxe7 {[%emt 0:00:25]} 21. Bg3 {[%emt 0:03:14]} gxf3 {[%emt 0:02:24]} 22. Bxd6 {[%emt 0:08:02]} fxg2 {[%emt 0:01:41]} 23. Bxg2 {[%emt 0:00:02]} cxd4 {[%emt 0:00:52]} 24. Bxe7 {[%emt 0:01:39]} (24. Nxd4 Bxc4 25. O-O-O e5 $17) 24... Nxe7 {[%emt 0:01:52]} 25. cxd4 {[%emt 0:00:01]} Ng6 {[%emt 0:06:46]} 26. Bf1 {[%emt 0:10:34]} Rh2 {[%emt 0:02:59]} 27. O-O-O {[%emt 0:01:57]} Nf4 {[%emt 0:02:18]} 28. Rd2 {[%emt 0:00:50]} Rh1 {[%emt 0:00:16][%csl LRc4,LRf1]} 29. Rd1 {[%emt 0:00:01]} f6 {[%emt 0:02:55]} 30. Kd2 {[%emt 0:01:19]} e5 {[%emt 0:00:39]} 31. d5 {[%emt 0:00:37] Inhibits Ne6.} Kd7 {[%emt 0:04:30][%cal Of6f5]} 32. Kc3 {[%emt 0:01:02]} Kd6 {[%emt 0:00:29]} 33. Kb4 {[%emt 0:01:59] [#]} ({White should play} 33. a4 $11) 33... f5 {[%emt 0:01:48] Black is more active.} 34. exf5 $11 {[%emt 0:02:04] [#]} Rxf1 $1 {[%emt 0:00:09]} 35. Rxf1 {[%emt 0:00:40]} Nxd5+ {[%emt 0:00:04][%mdl 4096] Endgame. KRN-KBN} 36. Ka4 {[%emt 0:01:42] Hoping for Nd2.} Bxc4 {[%emt 0:00:06]} 37. Rf3 $2 {[%emt 0:01:12][%mdl 8192] Loses the game.} (37. Rg1 $15) 37... e4 $19 {[%emt 0:00:25]} 38. Rh3 {[%emt 0:00:16] [#]} e3 $1 {[%emt 0:00:41]} 39. Nd4 {[%emt 0:00:49]} a5 {[%emt 0:02:15][%cal Rd5c3]} 40. Rh6+ {[%emt 0:00:24]} Ke5 {[%emt 0:01:23]} 41. Nb5 {[%emt 0:13:33] Inhibits Nc3+.} e2 {[%emt 0:01:02][%cal Od5c3]} (41... Kxf5 42. Nd6+ Kg5 43. Nxc4 $11 (43. Nf7+ Kf5 $11)) 42. Re6+ {[%emt 0:00:44]} Kf4 {[%emt 0:00:08] ( -> ...Bxb5+)} 43. f6 {[%emt 0:02:17]} Bxb5+ {[%emt 0:01:16] Black mates.} 44. Kb3 {[%emt 0:00:06] [#]} Nxf6 $1 {[%emt 0:00:37]} 45. Rxf6+ {[%emt 0:00:14]} Ke5 {[%emt 0:00:16]} 46. Rf7 {[%emt 0:01:25]} Kd6 {[%emt 0:00:32]} ({Not} 46... e1=R 47. Re7+ Kd6 48. Rxe1 $11) 47. Rf6+ {[%emt 0:00:18]} Ke7 {[%emt 0:00:15]} 48. Rxb6 {[%emt 0:00:16]} Bd7 {[%emt 0:00:09] Weighted Error Value: White=0.56/Black=0.09 (flawless) .  Loses game:     	White=1     	---        Mistake:       	White=2     	Black=2      Inaccurate:     	White=3     	Black=2      OK:         	White=14    	Black=6      Best:        	White=1     	Black=2} ({And not} 48... e1=R 49. Rxb5 Rb1+ 50. Ka4 Rxb5 51. Kxb5 $11) 0-1

[Event "Czech Championship 2024"]
[Site "Ostrava"]
[Date "2024.05.04"]
[Round "8.2"]
[White "Simacek, Pavel"]
[Black "Kraus, Tomas"]
[Result "1-0"]
[ECO "B33"]
[WhiteElo "2446"]
[BlackElo "2488"]
[Annotator "TA"]
[PlyCount "179"]
[EventDate "2024.04.25"]
[EventType "tourn"]
[EventCountry "CZE"]
[SourceTitle "playchess.com"]
[Source "ChessBase"]
[SourceQuality "1"]
[TimeControl "40/5400+30:1800+30"]

{[%evp 25,179,25,29,29,33,31,30,18,15,27,41,28,21,21,41,12,11,8,2,8,22,0,7,13,17,24,29,0,0,0,0,-6,23,0,18,0,14,14,56,62,55,51,51,33,41,0,23,17,13,27,225,102,80,162,257,260,260,260,260,260,260,260,260,260,301,243,243,253,260,260,260,260,260,260,260,260,260,260,260,260,252,260,260,260,247,260,248,248,248,260,295,247,247,333,29969,248,248,248,248,247,247,247,29961,0,247,247,247,247,247,247,247,247,247,250,250,0,250,0,250,243,243,250,250,250,250,250,250,241,241,241,241,241,241,241,241,241,29972,29973,29973,29974,29974,29974,29975,29976,29979,29980,29980,29981,29981,29982,29981,29982,29984,29985,29988,29989]} 1. e4 {[%emt 0:00:06]} c5 {[%emt 0:00:30]} 2. Nf3 {[%emt 0:00:20]} Nc6 {[%emt 0:00:44]} 3. d4 {[%emt 0:00:07]} cxd4 {[%emt 0:00:07]} 4. Nxd4 {[%emt 0:00:04]} e5 {[%emt 0:00:44]} 5. Nb5 {[%emt 0:00:11][%cal Bd4b5,Bb5a3,Ba3c2,Bc2e3,Be3d5][%mdl 32]} d6 {[%emt 0:00:30]} 6. N1c3 {[%emt 0:00:50]} a6 {[%emt 0:00:52]} 7. Na3 {[%emt 0:00:05]} b5 {[%emt 0:00:27]} 8. Nd5 {[%emt 0:00:17]} Nf6 {[%emt 0:00:19]} 9. Bg5 {[%emt 0:00:54]} Be7 {[%emt 0:00:12]} 10. Bxf6 {[%emt 0:00:12]} Bxf6 {[%emt 0:00:07]} 11. c3 {[%emt 0:00:30]} O-O {[%emt 0:00:13]} 12. Nc2 {[%emt 0:01:49]} Rb8 {[%emt 0:00:05]} 13. h4 {[%emt 0:00:27][%cal Bh2h4,Bh4h5,Bh5h6][%mdl 32]} g6 {[%emt 0:00:04]} 14. g3 {[%emt 0:00:57]} Bg7 {[%emt 0:01:21]} 15. h5 {[%emt 0:01:07]} Ne7 {[%emt 0:11:35]} 16. Nce3 {[%emt 0:00:36] White has an edge.} Nxd5 {[%emt 0:06:37]} 17. Nxd5 {[%emt 0:00:11]} Bb7 {[%emt 0:03:49]} 18. Qd3 {[%emt 0:01:48]} Rc8 {[%emt 0:05:59]} 19. Bg2 {[%emt 0:09:38]} Rc5 {[%emt 0:10:33]} 20. h6 {[%emt 0:02:17]} Bh8 {[%emt 0:09:12]} 21. b4 {[%emt 0:00:22]} Rc8 {[%emt 0:03:35]} 22. O-O {[%emt 0:12:35]} Bf6 {[%emt 0:08:37]} 23. a4 {[%emt 0:12:45]} bxa4 {[%emt 0:01:39]} 24. Bh3 {[%emt 0:03:42]} Ra8 {[%emt 0:02:28]} 25. Rxa4 {[%emt 0:11:30]} Bg5 {[%emt 0:00:46]} 26. Rd1 {[%emt 0:02:00]} Bxh6 {[%emt 0:01:32]} 27. c4 {[%emt 0:00:21][%cal Bc3c4,Bc4c5][%mdl 32]} Bg5 {[%emt 0:06:52]} 28. Ra2 {[%emt 0:06:38]} Rb8 {[%emt 0:08:50]} 29. Qc3 {[%emt 0:08:00][%mdl 1024] White has compensation.} Qe8 {[%emt 0:03:17]} 30. Rc2 {[%emt 0:08:02]} Qc6 {[%emt 0:03:47]} 31. c5 {[%emt 0:01:03]} Rfd8 {[%emt 0:00:41]} (31... Rfe8 $5) 32. f4 {[%emt 0:02:32]} exf4 {[%emt 0:00:47]} 33. gxf4 {[%emt 0:00:07]} Bh4 {[%emt 0:00:23][%cal Oa6a5]} 34. Bg2 $36 {[%emt 0:03:13][%mdl 2048] White is pushing.} dxc5 {[%emt 0:03:32]} 35. Qh3 {[%emt 0:01:39]} Qa4 {[%emt 0:00:27][%csl LRb4,LRc2]} 36. Rcd2 {[%emt 0:01:27]} Rxd5 $1 {[%emt 0:01:35]} 37. exd5 {[%emt 0:00:29]} Be7 {[%emt 0:03:20]} (37... Bf6 $1 $11 38. bxc5 Bc8) 38. d6 {[%emt 0:01:30]} (38. Qe3 $18 Bd6 39. bxc5 Bxf4 40. Qd4 Qxd4+ 41. Rxd4) 38... Bxg2 $16 {[%emt 0:00:24]} 39. Qxg2 {[%emt 0:00:19]} Bxd6 {[%emt 0:00:49]} (39... Bf6 {might work better.}) 40. Rxd6 $18 {[%emt 0:00:12] Strongly threatening Rd8+.} Rxb4 {[%emt 0:01:13]} 41. Qa8+ {[%emt 0:18:15]} Kg7 {[%emt 0:00:05]} 42. Qxa6 {[%emt 0:00:04]} Qxa6 {[%emt 0:08:49]} 43. Rxa6 {[%emt 0:00:05]} Rxf4 {[%emt 0:00:03]} 44. Rc6 {[%emt 0:00:33]} h5 {[%emt 0:01:39]} 45. Rf1 {[%emt 0:01:20]} Rxf1+ {[%emt 0:04:34]} 46. Kxf1 {[%emt 0:00:04][%mdl 4096] Endgame. KR-KP} g5 {[%emt 0:04:53]} 47. Kg2 {[%emt 0:01:36]} (47. Rxc5 f6 48. Kf2 h4 $18) 47... f5 {[%emt 0:00:53]} 48. Rxc5 {[%emt 0:05:49] KR-K3P} Kf6 {[%emt 0:01:00]} 49. Rc6+ {[%emt 0:00:14]} Kg7 {[%emt 0:03:54]} 50. Ra6 {[%emt 0:02:33]} h4 {[%emt 0:00:36][%cal Bh5h4,Bh4h3][%mdl 32]} 51. Kf3 {[%emt 0:01:18]} h3 {[%emt 0:08:06]} 52. Rb6 {[%emt 0:02:44]} g4+ {[%emt 0:01:01]} 53. Kg3 {[%emt 0:01:01]} Kf7 {[%emt 0:00:10]} 54. Kf4 {[%emt 0:01:15]} Kg7 {[%emt 0:00:17]} 55. Ra6 {[%emt 0:00:19]} (55. Kxf5 h2 56. Rb7+ (56. Kxg4 $2 h1=Q $19) 56... Kh6 57. Rb6+ (57. Kxg4 $2 h1=Q $19) 57... Kg7 58. Rb7+ (58. Kxg4 $2 h1=Q $19) 58... Kf8 $11) 55... Kf7 {[%emt 0:01:25]} 56. Ra5 {[%emt 0:02:12]} (56. Kxf5 h2 57. Ra7+ (57. Kxg4 h1=Q $19) 57... Ke8 $11) 56... Kg6 {[%emt 0:00:28]} 57. Rb5 {[%emt 0:00:06]} (57. Rxf5 $2 h2 58. Rg5+ (58. Kxg4 h1=Q $19) 58... Kh6 $19) 57... Kh6 {[%emt 0:00:59]} 58. Rb8 {[%emt 0:02:05]} (58. Kxf5 g3 59. Kg4 h2 60. Rh5+ (60. Kxg3 $2 h1=Q $19) 60... Kg6 61. Kxg3 Kxh5 62. Kxh2 $11) 58... Kg7 {[%emt 0:00:20]} 59. Ra8 {[%emt 0:00:53]} (59. Kxf5 g3 60. Rb7+ Kf8 $11) 59... Kf7 {[%emt 0:01:27]} 60. Rh8 $2 {[%emt 0:01:11]} (60. Kxf5 h2 61. Ra7+ (61. Kxg4 h1=Q $19) 61... Ke8 $11) (60. Kg3 Kg6 61. Rg8+ Kh6 62. Kf2 Kh5 63. Ke3 (63. Kg3 Kh6 $18) 63... Kh6 64. Ke2 Kh5 65. Kf2) 60... Kg7 {[%emt 0:00:01]} 61. Rh5 {[%emt 0:00:40]} Kg6 {[%emt 0:00:09]} 62. Rh4 {[%emt 0:00:19]} (62. Rxf5 h2 63. Rg5+ (63. Kxg4 h1=Q $19) 63... Kh6 $19) 62... Kf6 {[%emt 0:00:11]} 63. Rh7 {[%emt 0:00:39]} Kg6 {[%emt 0:00:10]} 64. Rh8 $2 {[%emt 0:00:05]} (64. Rb7 {mates} Kh6 65. Kg3 (65. Kxf5 h2 $11) 65... Kg6 66. Rb1 Kf7 67. Rb7+ Kg6 68. Rb6+ Kf7 69. Ra6) 64... Kg7 {[%emt 0:00:20]} 65. Rc8 {[%emt 0:00:12]} Kf7 {[%emt 0:00:54]} 66. Rd8 {[%emt 0:01:22]} (66. Kxf5 g3 67. Rc7+ Kf8 $11) 66... Kg7 {[%emt 0:00:21]} 67. Rd2 {[%emt 0:01:12]} (67. Kxf5 g3 68. Rd7+ Kf8 $11) 67... Kf6 {[%emt 0:00:13]} 68. Rc2 {[%emt 0:00:14]} Kg6 {[%emt 0:00:13]} 69. Rc5 {[%emt 0:00:16]} Kh6 {[%emt 0:01:01]} 70. Ra5 {[%emt 0:01:00]} (70. Kxf5 h2 71. Rc1 (71. Kxg4 $2 h1=Q $19) 71... g3 $11) 70... Kg6 $1 {[%emt 0:00:14]} 71. Ra6+ $2 {[%emt 0:00:08]} (71. Rxf5 $2 h2 72. Rg5+ (72. Kxg4 h1=Q $19) 72... Kh6 $19) (71. Ra4 $18) 71... Kg7 $2 {[%emt 0:00:37]} (71... Kf7 $11 {and Black stays safe.}) 72. Kg3 {[%emt 0:00:00]} (72. Kxf5 h2 73. Ra7+ (73. Kxg4 $2 h1=Q $19) 73... Kg8 74. Ra8+ (74. Kxg4 $2 h1=Q $19) 74... Kg7 75. Ra7+ (75. Kxg4 $2 h1=Q $19) 75... Kf8 $11) 72... Kf7 {[%emt 0:00:14]} 73. Kh4 {[%emt 0:00:01]} Kg7 {[%emt 0:00:11]} 74. Rc6 {[%emt 0:00:14]} Kf7 {[%emt 0:01:04]} 75. Rc8 {[%emt 0:00:16]} Kg7 {[%emt 0:00:17]} 76. Kg3 {[%emt 0:00:14]} Kf7 {[%emt 0:00:25]} 77. Rd8 {[%emt 0:01:29]} Kg7 {[%emt 0:00:17]} 78. Kf4 {[%emt 0:00:11]} Kf7 {[%emt 0:00:37]} 79. Rd1 {[%emt 0:01:06]} ({Stronger than} 79. Kxf5 g3 80. Rd7+ Ke8 $11) 79... Kf6 {[%emt 0:00:16]} 80. Kg3 {[%emt 0:00:48]} Kg5 $2 {[%emt 0:00:33]} (80... Kg6 $18 81. Rd7 Kf6) 81. Rd6 $1 {[%emt 0:00:26] White mates.} f4+ {[%emt 0:01:03][%cal Bf5f4,Bf4f3,Bf3f2][%mdl 32]} 82. Kh2 {[%emt 0:00:12]} Kh4 {[%emt 0:01:22] [#]} 83. Rh6+ $1 {[%emt 0:06:27]} Kg5 {[%emt 0:02:04]} 84. Rh8 {[%emt 0:00:00]} Kg6 {[%emt 0:00:00]} 85. Rf8 {[%emt 0:00:00]} Kg5 {[%emt 0:00:00]} 86. Rf7 {[%emt 0:00:00]} f3 {[%emt 0:00:00]} 87. Kg3 {[%emt 0:00:00]} Kg6 {[%emt 0:00:00]} 88. Rf4 {[%emt 0:00:00]} Kh5 {[%emt 0:00:00]} 89. Rxg4 {[%emt 0:00:00]} f2 {[%emt 0:00:15] [#]} 90. Rf4 $1 {[%emt 0:00:00] Weighted Error Value: White=0.25 (precise) /Black=0.14 (very precise) .  Loses game:     	---       	Black=2      Missed win:     	White=1     	---        Mistake:       	White=3     	Black=2      Inaccurate:     	White=2     	Black=2      OK:         	White=24    	Black=15     Best:        	---       	Black=21     Strong:       	White=1     	Black=2} (90. Kxh3 f1=Q+ (90... f1=B+ 91. Kg3 $11) 91. Rg2 Qf3+ 92. Kh2 Qe4 93. Rg3 Kh4 94. Rh3+ Kg4 95. Rg3+ Kf4 96. Rh3 Qd5 97. Rg3 Qe5 98. Rg2 Kf3+ 99. Kg1 Qa1+ 100. Kh2 Qe1 101. Ra2 Qh4+ 102. Kg1 Qd4+ 103. Kh2 Qh8+ 104. Kg1 Qg8+ 105. Kh2 Qxa2+ 106. Kh3 Qg2+ 107. Kh4 Qg4#) 1-0